fUSD/lending_fUSD_20240506
["ID","MTS","AMOUNT","RATE_DAILY","PERIOD"]
[326487431,1714995045350,-3482.66,0.00024657,2]
[326487432,1714995045360,-1315.12,0.00024657,2]
[326487433,1714995045370,-551.04,0.00024657,2]
[326487434,1714995045381,-3150.4,0.00024657,2]
[326487435,1714995045392,-6017.03,0.00024657,2]
[326487436,1714995045402,-500.0,0.00024657,2]
[326487437,1714995045412,-500.0,0.00024657,2]
[326487438,1714995045421,-2054.04,0.00024657,2]
[326487439,1714995045431,-608.07,0.00024657,2]
[326487440,1714995045441,-888.93,0.00024657,2]
[326487442,1714995045451,-9931.6,0.00024657,2]
[326487444,1714995045461,-500.0,0.00024657,2]
[326487446,1714995045471,-500.0,0.00024657,3]
[326487448,1714995045481,-3589.0,0.00024657,2]
[326487450,1714995045493,-500.0,0.00024657,4]
[326487452,1714995045503,-3936.71,0.00024657,2]
[326487454,1714995045512,-500.0,0.00024657,5]
[326487456,1714995045523,-500.0,0.00024657,2]
[326487458,1714995045533,-500.0,0.00024657,6]
[326487460,1714995045543,-2446.73,0.00024657,2]
[326487462,1714995045552,-500.0,0.00024657,7]
[326487464,1714995045561,-500.0,0.00024657,2]
[326487466,1714995045571,-500.0,0.00024657,8]
[326487468,1714995045581,-3312.31,0.00024657,2]
[326487470,1714995045591,-500.0,0.00024657,9]
[326487472,1714995045605,-500.0,0.00024657,2]
[326487474,1714995045615,-1900.16,0.00024657,2]
[326487476,1714995045625,-2859.92,0.00024657,2]
[326487478,1714995045637,-500.0,0.00024657,10]
[326487480,1714995045648,-1280.45,0.00024657,2]
[326487482,1714995045658,-505.50684787,0.00024657,2]
[326487484,1714995045667,-877.28,0.00024657,2]
[326487485,1714995045681,-504.39365497,0.00024657,2]
[326487486,1714995045695,-1475.54,0.00024657,2]
[326487487,1714995045706,-500.0,0.00024657,2]
[326487488,1714995045717,-1472.01,0.00024657,2]
[326487489,1714995045727,-585.76,0.00024657,2]
[326487490,1714995045738,-2755.35,0.00024657,2]
[326487491,1714995045749,-505.58025804,0.00024657,2]
[326487492,1714995045759,-6923.27,0.00024657,2]
[326487493,1714995045769,-2347.04,0.00024657,2]
[326487494,1714995045780,-1009.4,0.00024657,2]
[326487495,1714995045791,-500.0,0.00024657,2]
[326487496,1714995045801,-11190.35,0.00024657,2]
[326487497,1714995045811,-4119.07,0.00024657,2]
[326487498,1714995045822,-820.48,0.00024657,2]
[326487499,1714995045832,-2861.32,0.00024657,2]
[326487500,1714995045843,-1225.63,0.00024657,2]
[326487501,1714995045852,-503.7421562,0.00024657,2]
[326487502,1714995045863,-568.81,0.00024657,2]
[326487503,1714995045874,-500.0,0.00024657,2]
[326487504,1714995045886,-673.8,0.00024657,2]
[326487506,1714995045897,-536.49041607,0.00024657,2]
[326487507,1714995045907,-500.0,0.00024657,2]
[326487508,1714995045917,-500.0,0.00024657,2]
[326487509,1714995045928,-500.0,0.00024657,2]
[326487510,1714995045938,-4805.31,0.00024657,2]
[326487511,1714995045947,-4882.18,0.00024657,2]
[326487512,1714995045957,-4208.55,0.00024657,2]
[326487513,1714995045966,-845.9,0.00024657,2]
[326487514,1714995045976,-1863.28,0.00024657,2]
[326487516,1714995045987,-4678.18,0.00024657,2]
[326487518,1714995045996,-3617.60196294,0.00024657,2]
[326487556,1714995046751,-115.98803706,0.00024657,2]
[326487558,1714995046792,-9375.8009604,0.00024657,2]
[326487589,1714995051760,-1488.86329916,0.00023774,2]
[326487590,1714995051772,-511.13670084,0.00023774,2]
[326487591,1714995051783,-858.15761502,0.00024657,2]
[326487592,1714995051795,-248.62142458,0.00024657,2]
[326487593,1714995051805,-505.20019955,0.00024657,2]
[326487594,1714995051816,-5007.29,0.00024657,2]
[326487595,1714995051827,-1217.53,0.00024657,2]
[326487596,1714995051836,-500.0,0.00024657,2]
[326487597,1714995051846,-534.47910599,0.00024657,2]
[326487598,1714995051856,-1422.68,0.00024657,2]
[326487599,1714995051866,-500.0,0.00024657,2]
[326487600,1714995051877,-3050.27,0.00024657,2]
[326487601,1714995051888,-500.0,0.00024657,2]
[326487602,1714995051897,-1667.98,0.00024657,2]
[326487603,1714995051907,-505.24603494,0.00024657,2]
[326487604,1714995051916,-500.0,0.00024657,2]
[326487605,1714995051926,-151.39450195,0.00024657,2]
[326487606,1714995051935,-670.25,0.00024657,2]
[326487607,1714995051945,-500.0,0.00024657,2]
[326487608,1714995051955,-500.0,0.00024657,2]
[326487609,1714995051964,-1005.68,0.00024657,2]
[326487610,1714995051974,-1127.87,0.00024657,2]
[326487611,1714995051984,-2301.72,0.00024657,2]
[326487612,1714995051993,-697.42227107,0.00024657,2]
[326487613,1714995052006,-291.71772893,0.00024657,2]
[326487614,1714995052015,-2549.10708007,0.00024657,2]
[326487615,1714995052027,-802.8625,0.00024657,2]
[326487616,1714995052038,-3484.50041993,0.00024657,2]
[326487617,1714995052049,-596.69,0.00024657,2]
[326487618,1714995052059,-5091.28,0.00024657,2]
[326487619,1714995052068,-1637.16,0.00024657,2]
[326487620,1714995052078,-509.27307411,0.00024657,2]
[326487621,1714995052087,-506.84770695,0.00024657,2]
[326487622,1714995052097,-1833.36,0.00024657,2]
[326487623,1714995052107,-4781.53,0.00024657,2]
[326487624,1714995052119,-585.17,0.00024657,2]
[326487625,1714995052128,-679.95,0.00024657,2]
[326487626,1714995052139,-500.0,0.00024657,2]
[326487627,1714995052149,-502.88866661,0.00024657,2]
[326487628,1714995052158,-500.0,0.00024657,2]
[326487629,1714995052168,-1498.71,0.00024657,2]
[326487630,1714995052178,-596.85,0.00024657,2]
[326487631,1714995052192,-924.19,0.00024657,2]
[326487632,1714995052203,-500.0,0.00024657,2]
[326487633,1714995052213,-1009.77,0.00024657,2]
[326487634,1714995052223,-500.45,0.00024657,2]
[326487635,1714995052233,-500.0,0.00024657,2]
[326487636,1714995052242,-500.0,0.00024657,2]
[326487637,1714995052252,-500.0,0.00024657,2]
[326487638,1714995052263,-1551.61,0.00024657,2]
[326487639,1714995052272,-155.22049817,0.00024657,2]
[326487640,1714995052282,-751.45,0.00024657,2]
[326487641,1714995052292,-4625.65,0.00024657,2]
[326487642,1714995052301,-500.0,0.00024657,2]
[326487643,1714995052312,-500.0,0.00024657,2]
[326487644,1714995052321,-500.0,0.00024657,2]
[326487645,1714995052331,-500.0,0.00024657,2]
[326487646,1714995052340,-525.91,0.00024657,2]
[326487647,1714995052350,-1420.44,0.00024657,2]
[326487648,1714995052360,-6253.66829421,0.00024657,2]
[326487649,1714995052372,-2948.41847566,0.00024657,2]
[326487650,1714995052387,-2314.87323013,0.00024657,2]
[326487651,1714995052396,-624.38,0.00024657,2]
[326487652,1714995052405,-215.00616987,0.00024657,2]
[326487653,1714995052417,-284.99383013,0.00024657,2]
[326487654,1714995052427,-443.06459566,0.00024657,2]
[326487655,1714995052438,-861.78488582,0.00024657,2]
[326487656,1714995052449,-644.32608,0.00024657,2]
[326487657,1714995052461,-1287.69,0.00024657,2]
[326487658,1714995052473,-204.54443852,0.00024657,2]
[326487659,1714995052484,-2126.23653042,0.00024657,2]
[326487660,1714995052495,-2772.157,0.00024657,2]
[326487661,1714995052512,-822.52646958,0.00024657,2]
[326487662,1714995052522,-1041.28,0.00024657,2]
[326487663,1714995052532,-2244.41939512,0.00024657,2]
[326487664,1714995052549,-289.56060488,0.00024657,2]
[326487665,1714995052558,-195.44565002,0.00024657,2]
[326487666,1714995052570,-334.88693141,0.00024657,2]
[326487667,1714995052580,-500.0,0.00024657,2]
[326487668,1714995052590,-4111.19,0.00024657,2]
[326487669,1714995052600,-500.0,0.00024657,2]
[326487670,1714995052614,-285.3691427,0.00024657,2]
[326487671,1714995052625,-3133.0308573,0.00024657,2]
[326487672,1714995052636,-1003.46,0.00024657,2]
[326487673,1714995052647,-500.0,0.00024657,2]
[326487674,1714995052657,-500.0,0.00024657,2]
[326487675,1714995052667,-1113.18,0.00024657,2]
[326487676,1714995052676,-163.44015779,0.00024657,2]
[326487677,1714995052688,-951.49,0.00024657,2]
[326487678,1714995052698,-499.59812449,0.00024657,2]
[326487679,1714995052708,-500.0,0.00024657,2]
[326487680,1714995052718,-3594.84,0.00024657,2]
[326487681,1714995052727,-500.0,0.00024657,2]
[326487682,1714995052737,-500.0,0.00024657,2]
[326487683,1714995052747,-3348.73,0.00024657,2]
[326487684,1714995052756,-500.0,0.00024657,2]
[326487685,1714995052766,-500.0,0.00024657,2]
[326487686,1714995052775,-500.0,0.00024657,2]
[326487687,1714995052785,-1239.74,0.00024657,2]
[326487688,1714995052794,-2306.97,0.00024657,2]
[326487689,1714995052804,-15407.91,0.00024657,2]
[326487690,1714995052813,-1059.99,0.00024657,2]
[326487691,1714995052822,-500.0,0.00024657,2]
[326487692,1714995052833,-3500.58,0.00024657,2]
[326487693,1714995052846,-1387.23,0.00024657,2]
[326487694,1714995052856,-500.0,0.00024657,2]
[326487695,1714995052866,-2413.25,0.00024657,2]
[326487696,1714995052875,-506.68986201,0.00024657,2]
[326487697,1714995052886,-1124.75,0.00024657,2]
[326487698,1714995052895,-4774.58,0.00024657,2]
[326487699,1714995052905,-501.4279656,0.00024657,2]
[326487700,1714995052915,-1411.1,0.00024657,2]
[326487701,1714995052925,-2979.55,0.00024657,2]
[326487702,1714995052935,-500.0,0.00024657,2]
[326487703,1714995052944,-500.0,0.00024657,2]
[326487704,1714995052953,-1643.41,0.00024657,2]
[326487705,1714995052963,-500.0,0.00024657,2]
[326487706,1714995052972,-500.0,0.00024657,2]
[326487707,1714995052982,-4590.31,0.00024657,2]
[326487708,1714995052991,-564.86715499,0.00024657,2]
[326487709,1714995053001,-500.0,0.00024657,2]
[326487710,1714995053011,-685.01,0.00024657,2]
[326487711,1714995053027,-1006.21,0.00024657,2]
[326487712,1714995053036,-2665.88,0.00024657,2]
[326487713,1714995053046,-1574.64,0.00024657,2]
[326487714,1714995053056,-500.0,0.00024657,2]
[326487715,1714995053065,-1278.9,0.00024657,2]
[326487716,1714995053075,-1229.22,0.00024657,2]
[326487717,1714995053084,-1229.22,0.00024657,3]
[326487718,1714995053094,-500.0,0.00024657,2]
[326487719,1714995053103,-1229.22,0.00024657,4]
[326487720,1714995053113,-1229.22,0.00024657,5]
[326487721,1714995053122,-1229.22,0.00024657,6]
[326487722,1714995053132,-1229.22,0.00024657,7]
[326487723,1714995053141,-500.0,0.00024657,2]
[326487724,1714995053150,-500.0,0.00024657,2]
[326487725,1714995053160,-1677.15,0.00024657,2]
[326487726,1714995053169,-1229.22,0.00024657,8]
[326487727,1714995053178,-1229.22,0.00024657,9]
[326487728,1714995053188,-500.0,0.00024657,2]
[326487729,1714995053197,-629.19,0.00024657,2]
[326487730,1714995053207,-1229.22,0.00024657,10]
[326487731,1714995053216,-2547.42,0.00024657,2]
[326487732,1714995053225,-1229.22,0.00024657,11]
[326487733,1714995053235,-793.23,0.00024657,2]
[326487734,1714995053244,-1229.22,0.00024657,12]
[326487735,1714995053254,-863.81,0.00024657,2]
[326487736,1714995053263,-171.848633,0.00024657,7]
[326487737,1714995053273,-3964.07,0.00024657,2]
[326487738,1714995053283,-1326.06,0.00024657,2]
[326487739,1714995053292,-513.19106059,0.00024657,2]
[326487740,1714995053302,-500.0,0.00024657,2]
[326487741,1714995053312,-1206.01,0.00024657,2]
[326487742,1714995053321,-5538.31,0.00024657,2]
[326487743,1714995053331,-500.0,0.00024657,2]
[326487744,1714995053340,-506.68765274,0.00024657,2]
[326487745,1714995053349,-557.85,0.00024657,2]
[326487746,1714995053359,-500.0,0.00024657,2]
[326487747,1714995053369,-3404.25,0.00024657,2]
[326487748,1714995053379,-1639.42,0.00024657,2]
[326487749,1714995053390,-4435.37,0.00024657,2]
[326487750,1714995053400,-504.77291256,0.00024657,2]
[326487751,1714995053409,-1500.59,0.00024657,2]
[326487752,1714995053419,-501.21651666,0.00024657,2]
[326487753,1714995053428,-3902.62,0.00024657,2]
[326487754,1714995053438,-972.88,0.00024657,2]
[326487755,1714995053448,-829.26,0.00024657,2]
[326487756,1714995053458,-229.27343857,0.00024657,2]
[326487757,1714995053469,-683.93,0.00024657,2]
[326487758,1714995053478,-2273.94,0.00024657,2]
[326487759,1714995053488,-1024.71,0.00024657,2]
[326487760,1714995053497,-500.0,0.00024657,2]
[326487761,1714995053507,-3517.71,0.00024657,2]
[326487762,1714995053516,-386.13953057,0.00024657,2]
[326487763,1714995053526,-500.0,0.00024657,2]
[326487764,1714995053536,-1119.96,0.00024657,2]
[326487765,1714995053545,-1476.22,0.00024657,2]
[326487766,1714995053556,-9349.44,0.00024657,2]
[326487767,1714995053566,-500.0,0.00024657,2]
[326487768,1714995053576,-2075.02,0.00024657,2]
[326487769,1714995053586,-500.0,0.00024657,2]
[326487770,1714995053595,-928.71,0.00024657,2]
[326487771,1714995053611,-4188.47,0.00024657,2]
[326487772,1714995053620,-507.22416249,0.00024657,2]
[326487773,1714995053630,-500.0,0.00024657,2]
[326487774,1714995053640,-2314.03,0.00024657,2]
[326487775,1714995053650,-3219.74,0.00024657,2]
[326487776,1714995053660,-543.87,0.00024657,2]
[326487777,1714995053669,-504.06111649,0.00024657,2]
[326487778,1714995053678,-900.99,0.00024657,2]
[326487779,1714995053690,-268.41352218,0.00024657,2]
[326487780,1714995053701,-1742.28,0.00024657,2]
[326487781,1714995053710,-500.0,0.00024657,2]
[326487782,1714995053719,-500.0,0.00024657,2]
[326487783,1714995053729,-929.07,0.00024657,2]
[326487784,1714995053738,-6678.46,0.00024657,2]
[326487785,1714995053748,-1280.07,0.00024657,2]
[326487786,1714995053758,-312.42114166,0.00024663,2]
[326487787,1714995053767,-276.05,0.000247,2]
[326487788,1714995053778,-185.57,0.000247,2]
[326487789,1714995053788,-3800.0,0.000247,9]
[326487790,1714995053798,-261.21842552,0.00024738,2]
[326487791,1714995053812,-834.97939563,0.00024738,2]
[326487792,1714995053856,-1227.31947985,0.00024738,2]
[326487793,1714995053865,-1336.53439653,0.00024738,2]
[326487794,1714995053878,-1555.97582947,0.00024738,2]
[326487795,1714995053887,-152.0,0.00024741,3]
[326487796,1714995053897,-157.050619,0.00024798,4]
[326487797,1714995053907,-4700.0,0.000248,9]
[326487798,1714995053917,-211.26014163,0.000248,2]
[326487799,1714995053927,-782.63836136,0.000248,2]
[326487800,1714995053936,-590.11467443,0.000248,2]
[326487801,1714995053946,-592.90854018,0.000248,2]
[326487802,1714995053958,-5065.52423382,0.000248,2]
[326487803,1714995053968,-198.29193827,0.00024857,2]
[326487804,1714995053978,-4708.12629564,0.00024899,2]
[326487805,1714995053988,-500.0,0.00024899,12]
[326487806,1714995053997,-500.0,0.00024899,13]
[326487807,1714995054008,-7022.0,0.00024899,13]
[326487808,1714995054018,-7022.0,0.00024899,14]
[326487809,1714995054027,-500.0,0.00024899,11]
[326487810,1714995054036,-500.0,0.00024899,12]
[326487811,1714995054046,-1229.22,0.00024899,13]
[326487812,1714995054055,-1229.22,0.00024899,14]
[326487813,1714995054064,-8943.47274423,0.000249,5]
[326487814,1714995054076,-2868.43341692,0.000249,5]
[326487815,1714995054088,-642.29,0.000249,5]
[326487816,1714995054100,-481.7175,0.000249,5]
[326487817,1714995054111,-915.90324366,0.000249,5]
[326487818,1714995054125,-386.77939911,0.000249,5]
[326487819,1714995054138,-1308.97457036,0.000249,5]
[326487820,1714995054149,-1176.64081656,0.000249,5]
[326487821,1714995054160,-428.71976449,0.000249,5]
[326487822,1714995054346,-329.53898838,0.00024656,2]
[326487823,1714995054356,-642.97865875,0.00024656,2]
[326487824,1714995054369,-1132.90498906,0.00024656,2]
[326487825,1714995054379,-70214.0155171,0.000249,5]
[326487826,1714995054392,-13485.92702241,0.000249,5]
[326487827,1714995054404,-1605.725,0.000249,5]
[326487828,1714995054415,-1943.4988917,0.000249,5]
[326487829,1714995054509,-10523.92625,0.000249,5]
[326487830,1714995055162,-873.88559492,0.00021,2]
[326487831,1714995055338,-1340.18357038,0.00021,2]
[326487832,1714995055347,-1319.00273652,0.00024656,2]
[326487833,1714995055358,-1.38019559,0.00024656,2]
[326487834,1714995055370,-4265.17455051,0.00024656,2]
[326487835,1714995055382,-733.4452539,0.00024656,2]
[326487836,1714995055393,-90.37060156,0.00024657,2]
[326487837,1714995055405,-444.48939844,0.00024657,2]
[326487838,1714995055415,-1023.51060156,0.00024657,2]
[326487839,1714995055427,-2797.14935759,0.00024657,2]
[326487840,1714995055439,-642.29,0.00024657,2]
[326487841,1714995055452,-737.51933105,0.00024657,2]
[326487842,1714995055464,-312.14085402,0.00024657,2]
[326487843,1714995055476,-4437.28985578,0.00024657,2]
[326487844,1714995055486,-563.54784486,0.000249,5]
[326487845,1714995055500,-1428.50005517,0.000249,5]
[326487846,1714995055514,-3763.20466466,0.000249,5]
[326487847,1714995055527,-3054.89154427,0.000249,5]
[326487848,1714995055539,-192832.00000006,0.000249,5]
[326487849,1714995055551,-4416.15,0.000249,5]
[326487850,1714995055564,-1284.1755862,0.000249,5]
[326487851,1714995055576,-524.30266506,0.000249,5]
[326487852,1714995055588,-530.45176955,0.000249,5]
[326487853,1714995055601,-534.16021158,0.000249,5]
[326487854,1714995055623,-644.63,0.000249,5]
[326487855,1714995055748,-711.6806967,0.000249,5]
[326487856,1714995055761,-691.03903521,0.000249,5]
[326487857,1714995055773,-896.01,0.000249,5]
[326487874,1714995353520,1002.27733629,0.0001,4]
[326487878,1714995505862,-1535.4795584,0.000118,2]
[326487879,1714995506208,-76228.04651931,0.00013,2]
[326487880,1714995517496,-763.52607771,0.00013,2]
[326487882,1714995546885,4000.0,0.0001,2]
[326487883,1714995546909,4000.0,0.0001,2]
[326487884,1714995546933,4000.0,0.0001,2]
[326487885,1714995546957,4000.0,0.0001,2]
[326487886,1714995546981,4000.0,0.0001,2]
[326487887,1714995547005,4000.0,0.0001,2]
[326487888,1714995547029,4000.0,0.0001,2]
[326487889,1714995547053,4000.0,0.0001,2]
[326487890,1714995547078,4000.0,0.0001,2]
[326487891,1714995547102,4000.0,0.0001,2]
[326487892,1714995547126,4000.0,0.0001,2]
[326487893,1714995547150,4000.0,0.0001,2]
[326487894,1714995547176,3943.30544974,0.0001,2]
[326487911,1714996018435,-182.1,0.00015,10]
[326487912,1714996018492,-150.0,0.0002,10]
[326487913,1714996061202,56.69455026,0.0001,2]
[326487914,1714996061505,23455.20983797,0.0001,2]
[326487915,1714996133534,1375.97317537,0.0001,2]
[326487916,1714996149174,1375.66376283,0.0001,2]
[326487944,1714996233946,-207.0866132,0.00012734,2]
[326487945,1714996233956,-162.33624295,0.00012735,2]
[326487946,1714996233966,-155.0781746,0.00012738,2]
[326487947,1714996233976,-37.84056718,0.00012898,2]
[326487948,1714996233989,-2500.0,0.00012898,2]
[326487949,1714996234001,-741.6303794,0.00012898,2]
[326487950,1714996234011,-535.02614423,0.00012899,2]
[326487951,1714996234022,-1380.61006987,0.000129,2]
[326487952,1714996234035,-2262.6285107,0.000129,2]
[326487953,1714996234044,-312.42114166,0.000129,2]
[326487954,1714996234080,-395.27236012,0.000129,2]
[326487955,1714996234101,-456.46480478,0.000129,2]
[326487956,1714996234110,-521.75890756,0.000129,2]
[326487957,1714996234120,-191.85012218,0.000129,2]
[326487958,1714996234129,-174.62,0.0001299,2]
[326487959,1714996234139,-155.0,0.00012998,2]
[326487960,1714996234148,-155.0,0.00012998,2]
[326487961,1714996234157,-578.74943415,0.00012998,2]
[326487962,1714996234166,-596.23471885,0.00012998,2]
[326487963,1714996234211,-4616.39694592,0.00012998,2]
[326487964,1714996234220,-324.27594836,0.00012998,2]
[326487965,1714996234230,-155.16494776,0.00012998,2]
[326487966,1714996234239,-3276.9650901,0.00012998,2]
[326487967,1714996234252,-873.58,0.00012998,2]
[326487968,1714996234263,-15115.70547575,0.00012998,2]
[326487969,1714996234273,-1098.17284557,0.00012999,2]
[326487970,1714996234282,-114307.88496278,0.00013,2]
[326487971,1714996234293,-1075.9549519,0.00013,2]
[326487972,1714996234415,-7876.43527198,0.00013,2]
[326487973,1714996234426,-1081.99488194,0.00013,2]
[326487974,1714996234438,-259.94301548,0.00013,2]
[326487975,1714996234450,-1870.000025,0.00013,2]
[326487976,1714996234461,-373.00390906,0.00013,2]
[326487977,1714996234472,-6193.30848172,0.00013,2]
[326487978,1714996234483,-313.94261921,0.00013,2]
[326487979,1714996234495,-1147.79749018,0.00013,2]
[326487988,1714996234654,-3062.72260721,0.00013,2]
[326487990,1714996234666,-64235.01899793,0.00013,2]
[326488006,1714996234791,-4903.46776207,0.00013,2]
[326488288,1714996238558,-2143.77423767,0.00013,2]
[326488289,1714996238570,-13073.40910381,0.00013,2]
[326488290,1714996238811,-94788.07659153,0.00013,2]
[326488291,1714996238823,-11940.0,0.00013,2]
[326488292,1714996238838,-3690.942091,0.00013,2]
[326488293,1714996238851,-769.96443153,0.00013,2]
[326488294,1714996238902,-25685.39999996,0.00013,2]
[326488295,1714996238915,-22321.96126673,0.00013,2]
[326488296,1714996238927,-3027.89608,0.00013,2]
[326488297,1714996238947,-274735.91190435,0.00013,2]
[326488298,1714996238959,-5500.0,0.00013,2]
[326488299,1714996238975,-311.184893,0.00013,2]
[326488300,1714996238991,-1641.02539894,0.00013,2]
[326488301,1714996239004,-29212.73257831,0.00013,2]
[326488302,1714996239018,-365582.88842622,0.00013,2]
[326488341,1714996244647,-2756.6989758,0.00013,2]
[326488343,1714996244663,-5326.372237,0.00013,2]
[326488345,1714996244679,-99239.33624704,0.00013,2]
[326488348,1714996244692,-781.83159,0.00013,2]
[326488355,1714996245734,-348.48207264,0.00013,2]
[326488356,1714996245747,-839.10109103,0.00013,2]
[326488357,1714996245759,-965.64118334,0.00013,2]
[326488358,1714996245771,-1604.42251402,0.00013,2]
[326488359,1714996245783,-113766.45493571,0.00013,2]
[326488360,1714996245796,-464.93012333,0.00013,2]
[326488361,1714996245886,-379.046,0.00013,2]
[326488362,1714996245898,-5717.8551789,0.00013,2]
[326488363,1714996245910,-70852.20018315,0.00013,2]
[326488364,1714996245922,-1578.20000001,0.00013,2]
[326488365,1714996245935,-931.13278959,0.00013,2]
[326488431,1714996246639,-601.015996,0.00013,2]
[326488434,1714996246650,-346.11167018,0.00013,2]
[326488436,1714996246661,-527.9098895,0.00013,2]
[326488438,1714996246672,-308.43551883,0.00013,2]
[326488440,1714996246685,-13122.8963843,0.00013,2]
[326488443,1714996246696,-71346.92050616,0.00013,2]
[326488478,1714996247022,-1099.48363436,0.00013,2]
[326488479,1714996247051,-32208.73152797,0.00013,2]
[326488491,1714996247153,-93324.72634456,0.00013,2]
[326488494,1714996247164,-6428.1,0.00013,2]
[326488594,1714996248234,-1446.87205655,0.00013,2]
[326488621,1714996248483,-33566.57228907,0.00013,2]
[326488623,1714996248494,-902.001101,0.00013,2]
[326488626,1714996248505,-1719.94302761,0.00013,2]
[326488634,1714996248578,-1100.31409659,0.00013,2]
[326488706,1714997432577,-155.0,0.0001245,2]
[326488707,1714997432586,-1212.39834275,0.00012451,2]
[326488708,1714997432596,-217.04411242,0.00012452,2]
[326488709,1714997432605,-247.7881555,0.00012455,2]
[326488710,1714997432614,-1561.26800831,0.00012764,2]
[326488711,1714997432623,-3499.67939162,0.00012827,2]
[326488712,1714997432632,-7315.52670161,0.00012899,2]
[326488713,1714997432641,-10718.16135176,0.000129,2]
[326488714,1714997432652,-4281.83864824,0.000129,2]
[326488715,1714997432661,-160.24266439,0.000129,2]
[326488716,1714997432671,-737.87955437,0.000129,2]
[326488717,1714997432682,-545.79069227,0.000129,2]
[326488718,1714997432693,-2271.17547369,0.000129,2]
[326488719,1714997432704,-665.99242083,0.000129,2]
[326488720,1714997432731,-1270.46827519,0.000129,2]
[326488721,1714997432744,-600.22684027,0.000129,2]
[326488722,1714997432759,-599.46000008,0.000129,2]
[326488723,1714997432770,-3001.8,0.000129,2]
[326488725,1714997432795,-812.64718925,0.000129,2]
[326488726,1714997432806,-837.82808505,0.000129,2]
[326488727,1714997432819,-550.67700589,0.000129,2]
[326488728,1714997432831,-736.25453578,0.000129,2]
[326488729,1714997432841,-156.75428158,0.000129,2]
[326488730,1714997432850,-212.78614226,0.000129,2]
[326488731,1714997432862,-230.71645774,0.000129,2]
[326488732,1714997432872,-4066.4995,0.000129,2]
[326488733,1714997432881,-304.30986986,0.000129,2]
[326488734,1714997432891,-158.92463668,0.000129,2]
[326488735,1714997432900,-318.12851822,0.000129,2]
[326488736,1714997432911,-211.26014162,0.000129,2]
[326488737,1714997432920,-313.32365095,0.000129,2]
[326488738,1714997432929,-233.05359747,0.0001299,2]
[326488739,1714997432942,-43.01597303,0.0001299,2]
[326488740,1714997432951,-877.82058484,0.00012998,2]
[326488741,1714997432961,-133.88342931,0.00012999,2]
[326488742,1714997432973,-866.11657069,0.00012999,2]
[326488743,1714997432983,-3415.97266559,0.00012999,2]
[326488744,1714997432992,-328.84536599,0.00012999,2]
[326488745,1714997433001,-157.33479999,0.00012999,2]
[326488746,1714997433010,-499.99,0.00012999,2]
[326488747,1714997433020,-8335.65823822,0.00013,2]
[326488773,1714997438172,-10672.38601791,0.00013,2]
[326488774,1714997438183,-370.96436731,0.00013,2]
[326488775,1714997438195,-479.74318027,0.00013,2]
[326488777,1714997438255,-33463.25318316,0.00013,2]
[326488782,1714997442919,-3187.83375799,0.000129,2]
[326488783,1714997442928,-4640.34670896,0.00013,2]
[326488784,1714997442939,-638.34168548,0.00013,2]
[326488818,1714997445878,-160.33726094,0.00012999,2]
[326488820,1714997445893,-217.04411242,0.00012999,2]
[326488822,1714997445908,-0.8721364,0.00013,2]
[326488826,1714997445926,-7390.94543012,0.00013,2]
[326488828,1714997445944,-4043.23692891,0.00013,2]
[326488829,1714997446250,-2115.27665848,0.00012999,2]
[326488830,1714997446261,-6553.64938043,0.00013,2]
[326488831,1714997446284,-497308.69721616,0.00013,2]
[326488832,1714997446305,-2207.23215483,0.00013,2]
[326488833,1714997446319,-524.63567098,0.00013,2]
[326488834,1714997446422,-71346.92050616,0.00013,2]